[Event "55th Ladies GM 2024"]
[Site "Belgrade9"]
[Date "2024.03.06"]
[Round "5.4"]
[White "Xu, Yuanyuan"]
[Black "Doluhanova, Evgeniya"]
[Result "0-1"]
[ECO "A13"]
[WhiteElo "2288"]
[BlackElo "2261"]
[Annotator "TA"]
[PlyCount "80"]
[EventDate "2024.03.02"]
[EventType "tourn"]
[EventCountry "SRB"]
[SourceTitle "playchess.com"]
[Source "ChessBase"]
[SourceQuality "1"]
[TimeControl "40/5400+30:1800+30"]

{[%evp 9,80,4,5,0,0,0,0,0,0,-35,4,0,14,12,5,5,24,-36,-33,-20,-31,-120,61,39,39,0,0,-9,0,0,0,0,0,0,0,0,10,-4,0,-10,-12,-7,-17,-37,-18,-12,-10,-129,-131,-118,-117,-115,-125,-133,-105,-350,-326,-393,-387,-386,-374,-368,-272,-517,-341,-323,-331,-621,-585,-951,-935,-1789,-1660]} 1. Nf3 {[%emt 0:00:20]} Nf6 {[%emt 0:00:15]} 2. c4 {[%emt 1:31:10]} e6 {[%emt 0:00:04]} 3. e3 {[%emt 0:00:00]} b6 {[%emt 0:00:26]} 4. b3 {[%emt 0:00:00]} Bb7 {[%emt 0:00:27]} 5. Bb2 {[%emt 0:00:00]} Be7 {[%emt 0:00:17]} 6. g3 {[%emt 0:00:00]} O-O {[%emt 0:00:36]} 7. Bg2 {[%emt 0:00:00]} d5 {[%emt 0:00:21]} 8. cxd5 {[%emt 0:00:00] The position is equal.} Nxd5 {[%emt 0:03:25]} 9. a3 {[%emt 0:00:00]} Nd7 {[%emt 0:01:28][%cal Bb8d7,Bd7c5,Bc5d3][%mdl 32]} 10. O-O {[%emt 0:00:00]} Ba6 {[%emt 0:00:38]} 11. Re1 {[%emt 0:00:00]} Nc5 {[%emt 0:01:47]} 12. Ne5 {[%emt 0:00:00]} Bf6 {[%emt 0:01:38] [#] Hoping for ...Bxe5.} 13. d4 {[%emt 0:00:00]} (13. Nc6 $11 Qe8 14. Bxf6 Nxf6 15. Ne5) 13... Bxe5 $15 {[%emt 0:02:07]} 14. dxe5 {[%emt 0:00:00]} Nd3 {[%emt 0:00:55]} 15. Re2 {[%emt 0:00:00] [#]} (15. Bf1 $1 $15 Ne7 (15... Nxb2 16. Qc2 $15) 16. Bxd3 Qxd3 (16... Bxd3 17. Nc3 $15) 17. Qxd3 Bxd3 18. Bc3) 15... N5f4 $2 {[%emt 0:17:45] Black is much more active. The white rooks are passive.} 16. gxf4 {[%emt 0:00:00]} (16. exf4 {is interesting.} Nxb2 17. Qc2 Bxe2 18. Qxe2 Qd4 19. Ra2) 16... Nxb2 $1 {[%emt 0:00:07]} 17. Qxd8 {[%emt 0:00:00]} (17. Qc2 $14 Bxe2 18. Qxe2) 17... Raxd8 $11 {[%emt 0:00:22]} 18. Rd2 {[%emt 0:00:00]} Rxd2 {[%emt 0:15:38]} 19. Nxd2 {[%emt 0:00:00]} Rd8 {[%emt 0:00:04]} 20. Ne4 {[%emt 0:00:00]} Kf8 {[%emt 0:13:05]} 21. Bf3 {[%emt 0:00:00]} Bb7 {[%emt 0:10:36]} 22. Rb1 {[%emt 0:00:00]} Nd3 {[%emt 0:26:45]} 23. Kg2 {[%emt 0:00:00]} Ke7 {[%emt 0:01:00]} 24. b4 {[%emt 0:00:00]} f6 {[%emt 0:01:09]} 25. exf6+ {[%emt 0:00:00]} gxf6 {[%emt 0:00:04]} 26. Nd2 {[%emt 0:00:00]} c6 {[%emt 0:01:41][%cal Od3f4]} (26... Nxf2 $2 27. Kxf2 Rxd2+ 28. Ke1 $18) 27. Nb3 {[%emt 0:00:00]} e5 {[%emt 0:00:35]} 28. Rd1 {[%emt 0:07:53]} (28. fxe5 $11 {keeps the balance.} Rg8+ (28... Nxe5 29. Be4 $11) (28... fxe5 29. b5 $11) 29. Kf1 Nxe5 (29... fxe5 30. b5 $11) 30. Nd4) 28... e4 $17 {[%emt 0:00:28]} ({But not} 28... exf4 $6 29. Nd4 Rg8+ 30. Kf1 $11) 29. Be2 {[%emt 0:00:17]} c5 {[%emt 0:00:06]} 30. bxc5 {[%emt 0:00:34]} bxc5 {[%emt 0:00:06]} 31. Kf1 {[%emt 0:01:12]} Bd5 {[%emt 0:01:09]} 32. Na5 {[%emt 0:00:39] Loses the game.} (32. Rb1 $17) 32... c4 $19 {[%emt 0:00:20]} 33. f3 {[%emt 0:01:26]} f5 {[%emt 0:00:43] ...c3 is the strong threat.} 34. fxe4 {[%emt 0:00:54]} fxe4 {[%emt 0:00:04] White must now prevent ...c3.} 35. Rb1 {[%emt 0:00:48]} Rd6 {[%emt 0:00:22]} ({Don't play} 35... c3 36. Bd1 $19) 36. Rb8 $2 {[%emt 0:02:04]} (36. Rb5 {might work better.}) 36... Ra6 {[%emt 0:00:26]} 37. Rb5 {[%emt 0:00:07]} Kd6 {[%emt 0:01:05] And now ...Rb6 would win.} 38. Bd1 $2 {[%emt 0:01:00]} (38. Bh5) 38... Rb6 {[%emt 0:00:26] Black is clearly winning.} 39. Ba4 {[%emt 0:00:41]} Nb2 {[%emt 0:00:41]} 40. Rxb6+ {[%emt 0:00:51]} axb6 {[%emt 0:00:05] Weighted Error Value: White=0.75/Black=0.24 (precise) .  Loses game:     	White=1     	---        Mistake:       	White=6     	Black=1      Inaccurate:     	White=3     	Black=2      OK:         	White=14    	Black=10     Best:        	---       	Black=3      Strong:       	---       	Black=1} 0-1

[Event "55th Ladies GM 2024"]
[Site "Belgrade9"]
[Date "2024.03.06"]
[Round "5.4"]
[White "Xu, Yuanyuan"]
[Black "Doluhanova, Evgeniya"]
[Result "*"]
[ECO "A13"]
[WhiteElo "2288"]
[BlackElo "2261"]
[Annotator "RC"]
[PlyCount "38"]
[EventDate "2024.03.02"]
[EventType "tourn"]
[EventCountry "SRB"]
[SourceTitle "playchess.com"]
[Source "ChessBase"]
[SourceQuality "1"]
[TimeControl "40/5400+30:1800+30"]

1. Nf3 {[%emt 0:00:20]} Nf6 {[%emt 0:00:15]} 2. c4 {[%emt 1:31:10]} e6 {[%emt 0:00:04]} 3. e3 {[%emt 0:00:00]} b6 {[%emt 0:00:26]} 4. b3 {[%emt 0:00:00]} Bb7 {[%emt 0:00:27]} 5. Bb2 {[%emt 0:00:00]} Be7 {[%emt 0:00:17]} 6. g3 {[%emt 0:00:00]} O-O {[%emt 0:00:36]} 7. Bg2 {[%emt 0:00:00]} d5 {[%emt 0:00:21]} 8. cxd5 {[%emt 0:00:00]} Nxd5 {[%emt 0:03:25]} 9. a3 {[%emt 0:00:00]} Nd7 {[%emt 0:01:28]} 10. O-O {[%emt 0:00:00]} Ba6 {[%emt 0:00:38]} 11. Re1 {[%emt 0:00:00]} Nc5 {[%emt 0:01:47]} 12. Ne5 {[%emt 0:00:00]} Bf6 {[%emt 0:01:38]} 13. d4 {[%emt 0:00:00]} Bxe5 {[%emt 0:02:07]} 14. dxe5 {[%emt 0:00:00]} Nd3 {[%emt 0:00:55]} 15. Re2 {[%emt 0:00:00]} N5f4 {[%emt 0:17:45]} 16. gxf4 {[%emt 0:00:00]} Nxb2 {[%emt 0:00:07]} 17. Qxd8 {[%emt 0:00:00]} Rc8 {[%emt 1:06:44]} 18. Qxf8+ Rxf8 {[%emt 0:00:00]} 19. Rd2 {[%emt 0:00:00]} Rd8 {[%emt 0:00:00]} *

[Event "55th Ladies GM 2024"]
[Site "Belgrade9"]
[Date "2024.03.06"]
[Round "5.5"]
[White "Kubicka, Anna"]
[Black "Djukic, Sandra"]
[Result "1/2-1/2"]
[ECO "B27"]
[WhiteElo "2278"]
[BlackElo "2127"]
[Annotator "TA"]
[PlyCount "106"]
[EventDate "2024.03.02"]
[EventType "tourn"]
[EventCountry "SRB"]
[SourceTitle "playchess.com"]
[Source "ChessBase"]
[SourceQuality "1"]
[TimeControl "40/5400+30:1800+30"]

{[%evp 11,106,0,5,0,-12,-14,0,-16,-10,-7,-16,-37,0,-1,0,0,0,7,14,-7,-18,-18,-5,0,63,48,87,65,174,165,310,74,83,75,82,31,42,30,38,10,12,8,60,31,35,-33,-32,-75,-87,-78,-81,-82,-84,-79,-97,-90,-69,-70,-71,-103,-86,-87,-72,-112,-68,-82,-75,-64,-8,-8,-8,-8,0,0,0,-8,-8,-8,-8,-8,0,-178,-189,-202,-8,-8,-8,-8,-8,-8,-8,-8,-8,-8,-8,-40,-8]} 1. e4 {[%emt 0:00:06]} c5 {[%emt 0:00:04]} 2. Nf3 {[%emt 0:00:08]} g6 {[%emt 0:00:06]} 3. c3 {[%emt 0:00:24]} d5 {[%emt 0:00:05]} 4. e5 {[%emt 0:00:11]} a6 {[%emt 0:00:05]} 5. d4 {[%emt 0:00:22]} Nc6 {[%emt 0:00:06]} 6. h3 {[%emt 0:01:39] B27: Sizilianisch (Frühes Fianchetto).} Bg7 {[%emt 0:00:55]} 7. Bd3 {[%emt 0:02:08]} f6 {[%emt 0:14:37]} 8. O-O $146 {[%emt 0:04:23]} (8. dxc5 fxe5 9. Bc2 Nf6 $17) ({Predecessor:} 8. exf6 Nxf6 9. O-O O-O 10. Re1 Nh5 11. Be3 Qb6 12. Qb3 Qxb3 13. axb3 Rxf3 14. gxf3 cxd4 15. cxd4 Nxd4 16. Bxd4 Bxd4 17. Rxe7 {0-1 Kramnik,V (2753)-Vakhidov,J (2607) Astana Satty Zhuldyz Blitz 2023 (3)}) 8... fxe5 {[%emt 0:14:08]} 9. dxe5 {[%emt 0:03:39]} Nxe5 {[%emt 0:12:45]} 10. Nxe5 {[%emt 0:00:17]} Bxe5 {[%emt 0:00:03]} 11. f4 {[%emt 0:02:48]} Bg7 {[%emt 0:08:03]} 12. f5 $1 {[%emt 0:11:52]} Nf6 {[%emt 0:15:51]} 13. fxg6 {[%emt 0:03:08]} c4 {[%emt 0:19:14]} 14. Bc2 {[%emt 0:02:53]} Qb6+ {[%emt 0:03:53]} 15. Qd4 {[%emt 0:05:03]} (15. Kh1 {mit weiteren Verwicklungen.} Bg4 16. Qe1 hxg6 17. Bxg6+ Kd7 18. Bg5) 15... Qxd4+ {[%emt 0:01:36]} 16. cxd4 {[%emt 0:00:02]} Ne4 {[%emt 0:03:37]} 17. Be3 $1 {[%emt 0:02:09]} Ng3 {[%emt 0:03:18]} (17... hxg6 $11 18. Nc3 Bf5) 18. Rf2 $14 {[%emt 0:04:14]} Be6 {[%emt 0:00:32]} (18... hxg6 $6 19. Bxg6+ Kd7 20. Nc3 $18) 19. gxh7 {[%emt 0:02:40]} Kd7 {[%emt 0:00:28]} (19... Ne4 $1 $14) 20. Nc3 $18 {[%emt 0:01:02]} b5 {[%emt 0:00:27]} (20... Raf8 {war angesagt.} 21. Rxf8 Rxf8) 21. Ne2 $2 {[%emt 0:03:03]} (21. Kh2 $18 {ist viel giftiger.} Nh5 22. Re2) 21... Ne4 $16 {[%emt 0:00:32]} 22. Bxe4 {[%emt 0:00:30]} dxe4 {[%emt 0:00:01]} 23. Nc3 {[%emt 0:00:15]} ({Besser ist} 23. d5 $16 Bxd5 24. Rd1) 23... Rxh7 $14 {[%emt 0:00:59]} 24. Nxe4 {[%emt 0:00:17]} Kc6 {[%emt 0:00:28]} 25. Rd1 {[%emt 0:06:26]} (25. Ng5 $5 Rh6 $8 26. Re1 $14) 25... Bd5 {[%emt 0:00:24]} 26. Nc3 {[%emt 0:03:37]} Bf6 {[%emt 0:00:37]} ({Vorzuziehen ist} 26... b4 $11 27. Nxd5 Kxd5) 27. Rf5 {[%emt 0:03:39]} (27. Nxd5 {vereinfacht} Kxd5 28. Rf5+ Ke6 29. Rf3) 27... Rd8 {[%emt 0:00:01]} 28. Bg5 {[%emt 0:00:24]} (28. Bf2 $14) 28... b4 $15 {[%emt 0:00:45]} 29. Ne2 {[%emt 0:06:52]} Rh5 $1 {[%emt 0:00:32]} 30. h4 {[%emt 0:00:05]} Bxg5 $1 {[%emt 0:00:14]} 31. hxg5 {[%emt 0:00:02] [#]} e6 $1 {[%emt 0:00:56]} 32. Nf4 {[%emt 0:06:24]} exf5 {[%emt 0:00:04]} 33. Nxh5 {[%emt 0:00:03]} Rg8 {[%emt 0:00:09]} 34. Nf4 {[%emt 0:00:17]} Rxg5 {[%emt 0:00:04]} 35. Kf2 {[%emt 0:00:04]} Rg4 {[%emt 0:01:00]} 36. g3 {[%emt 0:00:02]} Rg8 {[%emt 0:00:04]} 37. Re1 {[%emt 0:02:45]} Be4 {[%emt 0:00:03]} 38. Rc1 $1 {[%emt 0:00:44]} Kb5 {[%emt 0:01:03]} 39. Ne6 {[%emt 0:00:44]} Rh8 {[%emt 0:00:01]} ({Günstiger ist} 39... Rc8 $15 40. Nc5 Bd5) 40. Nc7+ $11 {[%emt 0:02:39]} Kb6 {[%emt 0:00:03]} 41. Rxc4 {[%emt 0:31:04]} Rh2+ {[%emt 0:31:54]} (41... Rc8 $2 42. Nd5+ (42. Rxb4+ $2 {verliert.} Kxc7 43. Rc4+ Kb7 $19) 42... Kb7 43. Rxc8 (43. Rxb4+ Ka7 $18) 43... Kxc8 44. Nxb4 $18) 42. Ke3 {[%emt 0:00:10]} Rxb2 {[%emt 0:00:00]} 43. d5 {[%emt 0:00:00]} Rxa2 {[%emt 0:00:00]} 44. d6 $1 {[%emt 0:00:00]} Ra3+ {[%emt 0:00:00]} 45. Kf4 {[%emt 0:00:00]} a5 {[%emt 0:00:00]} 46. Ne6 $2 {[%emt 0:05:24] [#]} (46. Nd5+ $1 $11 {und Weiss muss sich keine Sorgen machen.} Bxd5 47. d7 Bxc4 (47... Rf3+ $2 48. Ke5 $18) 48. d8=Q+ Kc5 49. Kxf5) 46... Bc6 $1 $19 {[%emt 0:00:00]} 47. Nd4 {[%emt 0:06:20]} Rc3 $2 {[%emt 0:00:00]} (47... Be8 $19 {...Rd3 ist eine echte Drohung.} 48. Rc8 Ba4 (48... Bd7 49. Rd8 $17)) 48. Rxc3 $11 {[%emt 0:05:49]} bxc3 {[%emt 0:00:00]} 49. Ke3 {[%emt 0:00:29]} Bd7 {[%emt 0:04:34]} 50. Kd3 {[%emt 0:00:22]} Kc5 {[%emt 0:00:06]} 51. Kxc3 {[%emt 0:00:07]} Kxd6 {[%emt 0:00:18]} 52. Nxf5+ $1 {[%emt 0:00:54]} Bxf5 {[%emt 0:00:05]} 53. g4 {[%emt 0:00:18]} Bxg4 {[%emt 0:00:28]} 1/2-1/2

[Event "55th Ladies GM 2024"]
[Site "Belgrade9"]
[Date "2024.03.07"]
[Round "6.1"]
[White "Pogorelskikh, Sofia"]
[Black "Djukic, Sandra"]
[Result "1-0"]
[ECO "B15"]
[WhiteElo "2214"]
[BlackElo "2127"]
[Annotator "RC"]
[PlyCount "89"]
[EventDate "2024.03.02"]
[EventType "tourn"]
[EventCountry "SRB"]
[SourceTitle "playchess.com"]
[Source "ChessBase"]
[SourceQuality "1"]
[TimeControl "40/5400+30:1800+30"]

1. e4 {[%emt 0:00:11]} c6 {[%emt 0:01:14]} 2. d4 {[%emt 0:00:11]} d5 {[%emt 0:00:04]} 3. Nc3 {[%emt 0:00:13]} dxe4 {[%emt 0:00:06]} 4. Nxe4 {[%emt 0:00:11]} Nf6 {[%emt 0:00:05]} 5. Nxf6+ {[%emt 0:00:32]} exf6 {[%emt 0:00:05]} 6. c3 {[%emt 0:00:46]} Bd6 {[%emt 0:00:09]} 7. Bd3 {[%emt 0:00:40]} O-O {[%emt 0:00:07]} 8. Qc2 {[%emt 0:00:13]} h5 {[%emt 0:00:06]} 9. Ne2 {[%emt 0:00:53]} Re8 {[%emt 0:00:06]} 10. Be3 {[%emt 0:01:40]} Nd7 {[%emt 0:00:31]} 11. O-O-O {[%emt 0:00:59]} Nf8 {[%emt 0:00:05]} 12. c4 {[%emt 0:01:29]} Be6 {[%emt 0:00:10]} 13. a3 {[%emt 0:01:13]} Rc8 {[%emt 0:00:50]} 14. h3 {[%emt 0:01:08]} h4 {[%emt 0:00:22]} 15. Kb1 {[%emt 0:07:38]} Ng6 {[%emt 0:00:47]} 16. Nc3 {[%emt 0:06:02]} b5 {[%emt 0:02:50]} 17. c5 {[%emt 0:03:01]} Bf8 {[%emt 0:04:23]} 18. d5 {[%emt 0:13:51]} cxd5 {[%emt 0:00:14]} 19. Bxb5 {[%emt 0:01:32]} Bxc5 {[%emt 0:00:15]} 20. Bxc5 {[%emt 0:03:30]} Rxc5 {[%emt 0:00:10]} 21. Bxe8 {[%emt 0:01:42]} Qxe8 {[%emt 0:00:05]} 22. Rd4 {[%emt 0:08:46]} Ne7 {[%emt 0:01:36]} 23. Qa4 {[%emt 0:03:34]} Qc8 {[%emt 0:01:57]} 24. Qxa7 {[%emt 0:05:37]} Rc7 {[%emt 0:06:59]} 25. Qa4 {[%emt 0:04:35]} Rxc3 {[%emt 0:04:15]} 26. bxc3 {[%emt 0:03:21]} Nf5 {[%emt 0:31:25]} 27. Qb4 {[%emt 0:05:10]} Qc7 {[%emt 0:04:57]} 28. a4 {[%emt 0:05:45]} Qe5 {[%emt 0:03:51]} 29. Rhd1 {[%emt 0:02:36]} g5 {[%emt 0:02:32]} 30. a5 {[%emt 0:01:49]} Nxd4 {[%emt 0:00:38]} 31. cxd4 {[%emt 0:07:12]} Qe2 {[%emt 0:00:14]} 32. Rc1 {[%emt 0:03:55]} Kg7 {[%emt 0:02:06]} 33. Ka1 {[%emt 0:00:50]} Bf5 {[%emt 0:01:33]} 34. Qa3 {[%emt 0:01:40]} Bd3 {[%emt 0:00:40]} 35. Qb2 {[%emt 0:00:41]} Qe8 {[%emt 0:00:35]} 36. Qb4 {[%emt 0:01:35]} Qe2 {[%emt 0:02:11]} 37. Qe1 {[%emt 0:01:07]} Qh5 {[%emt 0:00:32]} 38. Rc6 {[%emt 0:01:07]} Qg6 {[%emt 0:02:11]} 39. Qe7 {[%emt 0:01:52]} Qf5 {[%emt 0:01:18]} 40. Rc7 {[%emt 0:01:10]} Qg6 {[%emt 0:03:09]} 41. Rc8 {[%emt 0:07:07]} Qh5 {[%emt 0:00:23]} 42. f3 {[%emt 0:01:08]} Bh7 {[%emt 0:02:50]} 43. a6 {[%emt 0:03:10]} g4 {[%emt 0:00:07]} 44. fxg4 {[%emt 0:00:42]} Qg5 {[%emt 0:00:04]} 45. Qf8+ {[%emt 0:01:28]} 1-0

[Event "55th Ladies GM 2024"]
[Site "Belgrade9"]
[Date "2024.03.07"]
[Round "6.2"]
[White "Doluhanova, Evgeniya"]
[Black "Kubicka, Anna"]
[Result "1/2-1/2"]
[ECO "E65"]
[WhiteElo "2261"]
[BlackElo "2278"]
[Annotator "RC"]
[PlyCount "297"]
[EventDate "2024.03.02"]
[EventType "tourn"]
[EventCountry "SRB"]
[SourceTitle "playchess.com"]
[Source "ChessBase"]
[SourceQuality "1"]
[TimeControl "40/5400+30:1800+30"]

1. Nf3 {[%emt 0:00:29]} Nf6 {[%emt 0:00:12]} 2. c4 {[%emt 0:00:22]} g6 {[%emt 0:00:12]} 3. Nc3 {[%emt 0:00:23]} Bg7 {[%emt 0:00:06]} 4. g3 {[%emt 0:00:27]} O-O {[%emt 0:00:19]} 5. Bg2 {[%emt 0:00:03]} d6 {[%emt 0:00:08]} 6. O-O {[%emt 0:00:29]} c5 {[%emt 0:00:49]} 7. d4 {[%emt 0:02:46]} Nc6 {[%emt 0:00:15]} 8. dxc5 {[%emt 0:05:10]} dxc5 {[%emt 0:00:12]} 9. Be3 {[%emt 0:00:34]} Qa5 {[%emt 0:00:21]} 10. Nd5 {[%emt 0:07:54]} Be6 {[%emt 0:23:13]} 11. Ng5 {[%emt 0:06:12]} Bxd5 {[%emt 0:02:05]} 12. cxd5 {[%emt 0:00:22]} Nd4 {[%emt 0:02:36]} 13. Bd2 {[%emt 0:11:29]} Qa6 {[%emt 0:09:59]} 14. e3 {[%emt 0:01:42]} Nb5 {[%emt 0:05:28]} 15. a4 {[%emt 0:15:47]} Nd6 {[%emt 0:04:18]} 16. Bc3 {[%emt 0:03:14]} Rac8 {[%emt 0:21:39]} 17. Qc2 {[%emt 0:03:04]} h6 {[%emt 0:07:29]} 18. Nh3 {[%emt 0:00:36]} Nd7 {[%emt 0:00:10]} 19. Rfe1 {[%emt 0:06:43]} Ne5 {[%emt 0:03:27]} 20. Red1 {[%emt 0:14:06]} c4 {[%emt 0:00:45]} 21. Nf4 {[%emt 0:00:31]} Qb6 {[%emt 0:03:23]} 22. Bd4 {[%emt 0:02:53]} Qa5 {[%emt 0:00:35]} 23. e4 {[%emt 0:04:14]} a6 {[%emt 0:00:56]} 24. h4 {[%emt 0:02:05]} h5 {[%emt 0:00:26]} 25. Bc3 {[%emt 0:01:04]} Qc7 {[%emt 0:00:26]} 26. Qe2 {[%emt 0:00:16]} b5 {[%emt 0:02:37]} 27. Nh3 {[%emt 0:06:52]} Nd3 {[%emt 0:01:01]} 28. Nf4 {[%emt 0:00:32]} b4 {[%emt 0:04:46]} 29. Bxg7 {[%emt 0:00:22]} Nxf4 {[%emt 0:00:04]} 30. gxf4 {[%emt 0:00:08]} Kxg7 {[%emt 0:00:03]} 31. f5 {[%emt 0:01:48]} c3 {[%emt 0:01:10]} 32. bxc3 {[%emt 0:00:09]} bxc3 {[%emt 0:00:06]} 33. Rac1 {[%emt 0:00:18]} Qc4 {[%emt 0:00:22]} 34. Rd3 {[%emt 0:02:53]} c2 {[%emt 0:01:13]} 35. Rd2 {[%emt 0:00:40]} Qxa4 {[%emt 0:00:21]} 36. Rdxc2 {[%emt 0:00:55]} Rxc2 {[%emt 0:00:06]} 37. Rxc2 {[%emt 0:00:30]} Qa1+ {[%emt 0:01:17]} 38. Qf1 {[%emt 0:00:49]} Qxf1+ {[%emt 0:01:18]} 39. Kxf1 {[%emt 0:00:06]} gxf5 {[%emt 0:01:23]} 40. e5 {[%emt 0:00:21]} Nb5 {[%emt 0:03:02]} 41. Ra2 {[%emt 0:03:08]} Rc8 {[%emt 0:15:17]} 42. Rxa6 {[%emt 0:07:04]} Rc4 {[%emt 0:05:17]} 43. Rb6 {[%emt 0:08:11]} Nd4 {[%emt 0:05:15]} 44. Rb1 {[%emt 0:06:45]} f4 {[%emt 0:00:46]} 45. Be4 {[%emt 0:05:49]} f3 {[%emt 0:02:47]} 46. Ke1 {[%emt 0:01:44]} f5 {[%emt 0:00:46]} 47. exf6+ {[%emt 0:01:00]} Kxf6 {[%emt 0:00:04]} 48. Kd2 {[%emt 0:00:25]} Ra4 {[%emt 0:01:47]} 49. Bd3 {[%emt 0:00:38]} Ke5 {[%emt 0:02:19]} 50. Re1+ {[%emt 0:00:51]} Kxd5 {[%emt 0:00:37]} 51. Rxe7 {[%emt 0:00:15]} Ra2+ {[%emt 0:00:26]} 52. Ke3 {[%emt 0:00:44]} Nf5+ {[%emt 0:00:30]} 53. Bxf5 {[%emt 0:00:05]} Re2+ {[%emt 0:00:02]} 54. Kxf3 {[%emt 0:00:07]} Rxe7 {[%emt 0:00:02]} 55. Kf4 {[%emt 0:00:49]} Rg7 {[%emt 0:01:01]} 56. f3 {[%emt 0:00:07]} Kd6 {[%emt 0:01:33]} 57. Bc8 {[%emt 0:01:14]} Ke7 {[%emt 0:01:27]} 58. Ke5 {[%emt 0:00:13]} Rg3 {[%emt 0:00:31]} 59. Kf4 {[%emt 0:00:39]} Rg8 {[%emt 0:00:11]} 60. Bb7 {[%emt 0:00:28]} Kf6 {[%emt 0:00:06]} 61. Bd5 {[%emt 0:00:19]} Rd8 {[%emt 0:00:26]} 62. Bc6 {[%emt 0:00:21]} Rd4+ {[%emt 0:00:18]} 63. Kg3 {[%emt 0:00:08]} Rd1 {[%emt 0:00:20]} 64. Be8 {[%emt 0:00:33]} Rd5 {[%emt 0:00:05]} 65. Bc6 {[%emt 0:00:30]} Re5 {[%emt 0:00:17]} 66. Be4 {[%emt 0:00:09]} Rc5 {[%emt 0:00:12]} 67. Bd3 {[%emt 0:00:30]} Rc1 {[%emt 0:00:36]} 68. Bb5 {[%emt 0:00:23]} Re1 {[%emt 0:00:13]} 69. Bc6 {[%emt 0:00:30]} Ke5 {[%emt 0:01:04]} 70. Be8 {[%emt 0:00:38]} Rg1+ {[%emt 0:00:04]} 71. Kf2 {[%emt 0:00:41]} Rg8 {[%emt 0:00:18]} 72. Bxh5 {[%emt 0:00:13]} Rh8 {[%emt 0:00:17]} 73. Bg4 {[%emt 0:00:07]} Rxh4 {[%emt 0:00:03]} 74. Ke3 {[%emt 0:00:16]} Rh1 {[%emt 0:00:15]} 75. f4+ {[%emt 0:00:17]} Kf6 {[%emt 0:00:05]} 76. Kf3 {[%emt 0:00:30]} Rf1+ {[%emt 0:00:09]} 77. Ke3 {[%emt 0:00:12]} Re1+ {[%emt 0:00:08]} 78. Kf3 {[%emt 0:00:04]} Re7 {[%emt 0:00:18]} 79. Bc8 {[%emt 0:01:16]} Rc7 {[%emt 0:00:09]} 80. Ba6 {[%emt 0:00:36]} Rc6 {[%emt 0:01:33]} 81. Bb5 {[%emt 0:00:27]} Rb6 {[%emt 0:00:14]} 82. Bc4 {[%emt 0:00:18]} Rb4 {[%emt 0:00:05]} 83. Ba6 {[%emt 0:00:23]} Ra4 {[%emt 0:01:03]} 84. Bb5 {[%emt 0:00:15]} Ra5 {[%emt 0:00:05]} 85. Bc4 {[%emt 0:00:32]} Rc5 {[%emt 0:01:00]} 86. Ba6 {[%emt 0:00:19]} Rc6 {[%emt 0:00:34]} 87. Bb5 {[%emt 0:00:17]} Rd6 {[%emt 0:00:03]} 88. Kg4 {[%emt 0:00:33]} Rd5 {[%emt 0:00:12]} 89. Bc4 {[%emt 0:00:38]} Rd2 {[%emt 0:00:05]} 90. Ba6 {[%emt 0:00:31]} Rg2+ {[%emt 0:00:05]} 91. Kf3 {[%emt 0:00:05]} Ra2 {[%emt 0:00:04]} 92. Bb5 {[%emt 0:01:02]} Rb2 {[%emt 0:00:15]} 93. Ba6 {[%emt 0:00:16]} Rb8 {[%emt 0:00:38]} 94. Kg4 {[%emt 0:00:28]} Rg8+ {[%emt 0:00:03]} 95. Kf3 {[%emt 0:00:04]} Ra8 {[%emt 0:00:03]} 96. Bb5 {[%emt 0:00:28]} Ra5 {[%emt 0:00:09]} 97. Bc4 {[%emt 0:00:18]} Rc5 {[%emt 0:00:43]} 98. Ba6 {[%emt 0:00:20]} Ke6 {[%emt 0:00:29]} 99. Kg4 {[%emt 0:00:18]} Rc7 {[%emt 0:00:09]} 100. Bb5 {[%emt 0:00:56]} Rg7+ {[%emt 0:00:15]} 101. Kf3 {[%emt 0:00:05]} Kd5 {[%emt 0:00:03]} 102. Ba6 {[%emt 0:00:37]} Kd4 {[%emt 0:00:11]} 103. Bc8 {[%emt 0:00:38]} Rc7 {[%emt 0:00:15]} 104. Be6 {[%emt 0:03:16]} Rc1 {[%emt 0:01:21]} 105. f5 {[%emt 0:00:35]} Ke5 {[%emt 0:00:12]} 106. Ke3 {[%emt 0:00:11]} Rc3+ {[%emt 0:00:04]} 107. Kd2 {[%emt 0:00:15]} Ra3 {[%emt 0:00:13]} 108. Kc2 {[%emt 0:00:11]} Rg3 {[%emt 0:00:24]} 109. Kb2 {[%emt 0:00:18]} Rf3 {[%emt 0:00:14]} 110. Kc2 {[%emt 0:00:04]} Kd4 {[%emt 0:00:05]} 111. Kb2 {[%emt 0:00:07]} Rf1 {[%emt 0:01:45]} 112. Kc2 {[%emt 0:00:38]} Rf4 {[%emt 0:00:44]} 113. Kb2 {[%emt 0:01:27]} Rf3 {[%emt 0:01:32]} 114. Kc2 {[%emt 0:00:14]} Rc3+ {[%emt 0:00:04]} 115. Kd2 {[%emt 0:00:50]} Rc6 {[%emt 0:02:37]} 116. Ke2 {[%emt 0:00:28]} Rc2+ {[%emt 0:03:03]} 117. Kf3 {[%emt 0:00:10]} Rc1 {[%emt 0:00:27]} 118. Kf4 {[%emt 0:01:31]} Rf1+ {[%emt 0:00:11]} 119. Kg5 {[%emt 0:00:04]} Ke5 {[%emt 0:00:04]} 120. Kg4 {[%emt 0:00:05]} Rg1+ {[%emt 0:01:41]} 121. Kf3 {[%emt 0:00:08]} Rg7 {[%emt 0:00:37]} 122. Bc8 {[%emt 0:00:25]} Rc7 {[%emt 0:00:04]} 123. Be6 {[%emt 0:00:04]} Rc3+ {[%emt 0:00:14]} 124. Ke2 {[%emt 0:00:58]} Ke4 {[%emt 0:01:48]} 125. f6 {[%emt 0:01:59]} Rc2+ {[%emt 0:00:28]} 126. Kd1 {[%emt 0:00:13]} Rf2 {[%emt 0:00:36]} 127. f7 {[%emt 0:00:06]} Kd3 {[%emt 0:00:28]} 128. Kc1 {[%emt 0:00:39]} Kc3 {[%emt 0:00:19]} 129. Kd1 {[%emt 0:01:29]} Rf6 {[%emt 0:00:20]} 130. Bd5 {[%emt 0:00:27]} Kd4 {[%emt 0:01:06]} 131. Ba2 {[%emt 0:00:28]} Kd3 {[%emt 0:00:12]} 132. Bb1+ {[%emt 0:00:49]} Ke3 {[%emt 0:00:46]} 133. Ba2 {[%emt 0:00:19]} Rf2 {[%emt 0:00:13]} 134. Bc4 {[%emt 0:00:42]} Rf4 {[%emt 0:01:22]} 135. Bb3 {[%emt 0:00:31]} Kd3 {[%emt 0:00:29]} 136. Ke1 {[%emt 0:00:28]} Rf6 {[%emt 0:00:16]} 137. Ba2 {[%emt 0:00:32]} Ke3 {[%emt 0:00:25]} 138. Bc4 {[%emt 0:00:22]} Rf4 {[%emt 0:00:42]} 139. Ba2 {[%emt 0:00:35]} Rf2 {[%emt 0:00:32]} 140. Kd1 {[%emt 0:00:32]} Kd3 {[%emt 0:00:29]} 141. Bb1+ {[%emt 0:00:15]} Kd4 {[%emt 0:00:51]} 142. Ba2 {[%emt 0:00:17]} Ke3 {[%emt 0:00:12]} 143. Bc4 {[%emt 0:00:33]} Rf4 {[%emt 0:00:22]} 144. Ba2 {[%emt 0:00:26]} Kd3 {[%emt 0:00:42]} 145. Bb1+ {[%emt 0:00:17]} Kd4 {[%emt 0:00:34]} 146. Ba2 {[%emt 0:00:06]} Rf2 {[%emt 0:00:24]} 147. Ke1 {[%emt 0:00:41]} Ke3 {[%emt 0:00:04]} 148. Kd1 {[%emt 0:00:24]} Rxf7 {[%emt 0:01:44]} 149. Bxf7 {[%emt 0:00:37]} 1/2-1/2